Cogmind - Beta 16 *** ADVENTURER MODE // 2025.12.27 @ 11:26:33 Player: SuDmit Result: Destroyed self with Advanced EMP Blaster Performance ------------- Evolutions (3) 1500 Regions Visited (14) 2800 Robots Destroyed (188) 940 Value Destroyed (9459) 9459 Prototype IDs (59) 1180 Alien Tech Used (0) 0 Bonus (6153) 6153 TOTAL SCORE: 22032 Bonus ------- High Alert Combat Kills 702 Follower Combat Kills 1362 Entered Garrisons 800 Used RIF Installer 3000 Aligned with FarCom 300 Friendly Fire -11 Cogmind --------- Core Integrity 0/700 Matter 207/300 Energy 45/150 System Corruption 8% Temperature Cool (0) Movement Hovering (56) Location -7/Garrison Parts ------- > --- POWER (1) -------- Micro Nuclear Core (fused) > --- PROPULSION (3) --- Gravmag System Gravmag System Improved VTOL Module > --- UTILITY (7) ------ Improved Signal Interpreter Improved Hacking Suite System Shield System Shield System Shield Relay Coupler [Grunt] (50) Relay Coupler [Sentry] (51) > --- WEAPON (2) ------- Advanced EMP Blaster > --- INVENTORY (5) ---- Hacking Suite System Shield Relay Coupler [Heavy] (13) Relay Coupler [Heavy] (18) Peak State ------------ > --- POWER ------------ Light Nuclear Core > --- PROPULSION ------- VTOL Module Xenon Bombardment Thruster Xenon Bombardment Thruster > --- UTILITY ---------- Improved Signal Interpreter Improved Hacking Suite System Shield System Shield System Shield Relay Coupler [Grunt] Relay Coupler [Sentry] > --- WEAPON ----------- Improved Arc Projector Improved Arc Projector > --- INVENTORY -------- Hacking Suite System Shield Relay Coupler [Heavy] Relay Coupler [Heavy] Shock Rifle [Rating: 51] Favorites ----------- Power Light Nuclear Core Engine Ion Engine Power Core Light Nuclear Core Propulsion Flight Unit Treads Light Treads Leg Aluminum Leg Wheel Compact Wheel Hover Unit Airjet Flight Unit Flight Unit Utility System Shield Device Scrap Suit Storage Medium Storage Unit Processor Signal Interpreter Hackware System Shield Protection Improved Light Armor Plating Weapon Shock Rifle Energy Gun Shock Rifle Energy Cannon EM Pulse Cannon Ballistic Gun Light Assault Rifle Ballistic Cannon Improved Light Cannon Launcher Heavy Rocket Launcher Special Weapon Remote Datajack Slashing Weapon Segregator Build | -11 -10 -10 -9 -9 -9 -8 -8 -8 -8 -8 -7 -7 -7 -7 ------- Run | Yrd Mat Min Mat Min Exi Min Mat Gar Mat Gar Fac Gar Fac Gar Slots Evolved 6 | . . . 2 . . . 2 . . . 2 . . . Power . | . . . . . . . . . . . . . . . Propulsion 1 | . . . . . . . 1 . . . . . . . Utility 5 | . . . 2 . . . 1 . . . 2 . . . Weapon . | . . . . . . . . . . . . . . . Parts Attached 151 | 6 8 5 21 8 . 1 11 12 14 17 9 28 11 . Power 20 | 1 . 2 3 3 . . 2 1 1 3 . 3 1 . Engine 12 | 1 . 1 3 3 . . 1 . . 2 . 1 . . Core 8 | . . 1 . . . . 1 1 1 1 . 2 1 . Reactor . | . . . . . . . . . . . . . . . Propulsion 52 | 2 3 1 5 2 . 1 5 6 6 3 3 8 7 . Treads 3 | . 2 1 . . . . . . . . . . . . Leg 6 | 2 1 . . . . . . 3 . . . . . . Wheel 1 | . . . . . . 1 . . . . . . . . Hover 10 | . . . . 1 . . 5 . . . . 2 2 . Flight 32 | . . . 5 1 . . . 3 6 3 3 6 5 . Utility 38 | . 5 . 9 1 . . 1 1 4 4 2 10 1 . Device 7 | . 1 . 3 1 . . 1 . 1 . . . . . Storage 3 | . 2 . 1 . . . . . . . . . . . Processor 5 | . 1 . 1 . . . . . 1 . . 2 . . Hackware 19 | . . . 3 . . . . . 2 4 2 7 1 . Protection 4 | . 1 . 1 . . . . 1 . . . 1 . . Artifact . | . . . . . . . . . . . . . . . Weapon 41 | 3 . 2 4 2 . . 3 4 3 7 4 7 2 . Energy Gun 18 | 3 . 1 1 . . . . 3 3 3 . 4 . . Energy Cannon 5 | . . . . . . . 2 . . . 3 . . . Ballistic Gun 9 | . . 1 . 1 . . 1 . . 3 . 2 1 . Ballistic Cannon 3 | . . . 3 . . . . . . . . . . . Launcher 3 | . . . . 1 . . . . . . 1 . 1 . Special Weapon 2 | . . . . . . . . . . 1 . 1 . . Impact Weapon . | . . . . . . . . . . . . . . . Slashing Weapon 1 | . . . . . . . . 1 . . . . . . Piercing Weapon . | . . . . . . . . . . . . . . . Special Melee Weapon . | . . . . . . . . . . . . . . . Unidentified Prototypes . | . . . . . . . . . . . . . . . Corrupted Parts 1 | . . . . . . . . . . . . . 1 . System Corruption 7 | . . . . . . . . . . . . . 7 . Parts Lost 49 | . . . 7 6 . . 1 5 . 6 3 14 6 1 Power 10 | . . . 3 1 . . . 1 . 2 . 2 1 . Propulsion 17 | . . . 1 2 . . 1 3 . 1 2 4 3 . Utility 5 | . . . 1 1 . . . . . 1 . 2 . . Weapon 17 | . . . 2 2 . . . 1 . 2 1 6 2 1 Highest Loss Streak 6 | . . . 3 5 . . 1 2 . 4 3 5 6 1 To Critical Strikes . | . . . . . . . . . . . . . . . Average Backups 5 | 1 7 9 5 4 4 4 4 4 4 4 4 4 4 4 Power . | . 1 . . . . . . . . . . . . . Propulsion . | . 2 2 . . . . . . . . . . . . Utility 3 | . 1 2 2 3 3 3 3 4 3 3 2 2 4 4 Weapon 1 | . 2 4 2 . 1 1 . . . . 1 1 . . Tool/Special . | . . . . . . . . . . . . . . . Unused Backups 20 | . 2 1 7 1 . . . . 1 1 3 1 . 3 Power . | . . . . . . . . . . . . . . . Propulsion 5 | . 2 1 2 . . . . . . . . . . . Utility 13 | . . . 4 1 . . . . . 1 3 1 . 3 Weapon 2 | . . . 1 . . . . . 1 . . . . . Tool/Special . | . . . . . . . . . . . . . . . Average Slot Usage (%) 93 | . 95 100 92 87 88 87 88 86 98 97 92 93 97 99 Engine 3 | . 14 10 3 10 11 11 2 . . . . . . . Core 5 | . . 3 2 . . . 6 8 8 7 6 6 6 7 Treads 3 | . 16 28 9 . . . . . . . . . . . Leg 1 | . 11 . . . . . . 8 1 . . . . . Hover 3 | . . . 1 4 11 10 23 5 . . . 1 3 15 Flight 13 | . . . 10 15 11 11 1 9 25 26 20 17 18 7 Device 5 | . . . 6 8 11 11 16 14 6 2 1 . . . Storage 2 | . 11 14 4 . . . . . . . . . . . Processor 10 | . 5 14 18 11 11 11 9 9 9 9 7 11 7 7 Hackware 21 | . . . 10 13 11 11 9 9 25 29 43 36 46 46 Protection 1 | . 5 . 1 3 . . 1 3 2 2 . 1 . . Energy Gun 9 | . 28 19 7 2 . . . 8 17 12 3 5 11 6 Energy Cannon 2 | . . . . . . . 11 9 . . 2 1 . . Ballistic Gun 3 | . . 8 3 14 22 22 6 . . 2 . 2 . . Peak Build Rating 51 | 5 8 11 19 22 18 18 34 34 35 35 46 47 51 48 Average Rating 28 | 3 7 10 15 18 18 17 30 28 30 31 40 40 48 47 On Entrance 24 | . 5 8 11 18 18 18 17 34 28 35 31 45 47 48 Avg Prop Armor Cover (%) 4 | . . . 5 5 5 4 3 4 . . . 12 1 1 Naked Turns . | . . . . . . . . . . . . . . . Heaviest Build 34 | 8 18 18 34 14 9 9 26 24 21 14 19 24 16 15 Greatest Support 40 | 20 40 40 40 16 5 16 30 33 36 17 21 21 20 20 Greatest Overweight (x) 5 | 1 . . 3 2 1 1 1 2 1 . 1 5 1 . Average Overweight (x) . | . . . . . 1 . . . . . . . . . Largest Inventory Capacity 15 | 5 10 10 15 5 5 5 5 5 5 5 5 5 5 5 Average Capacity 5 | 5 8 10 8 5 5 5 5 5 5 5 5 5 5 5 Most Carried 10 | 2 10 10 10 5 5 5 5 5 5 5 5 5 5 4 Average Carried 5 | 1 7 9 6 4 5 5 4 4 4 4 4 4 4 4 Final Capacity 10 | 5 10 10 5 5 5 5 5 5 5 5 5 5 5 5 Final Carried 10 | 2 10 10 5 5 5 5 5 5 5 5 5 5 4 4 Scrap Suit Usage (%) 27 | . . . . 68 100 100 100 83 8 . . . . . Parts Cannibalized 11 | . . . . 2 . . 3 6 . . . . . . Class Distribution -------------------- 47% | Hacker-Mutant 30% | Hacker-Sprinter 17% | Mutant 4% | Scavenger-Mutant Dominant Class ---------------- Mutant | -10/Materials Mutant | -10/Mines Mutant | -9/Materials Hacker-Mutant | -9/Mines Hacker-Mutant | -9/Exiles Hacker-Mutant | -8/Mines Hacker-Mutant | -8/Materials Hacker-Mutant | -8/Garrison Hacker-Sprinter | -8/Materials Hacker-Sprinter | -8/Garrison Hacker-Mutant | -7/Factory Hacker-Mutant | -7/Garrison Hacker-Sprinter | -7/Factory Hacker-Mutant | -7/Garrison Resources | -11 -10 -10 -9 -9 -9 -8 -8 -8 -8 -8 -7 -7 -7 -7 ----------- Run | Yrd Mat Min Mat Min Exi Min Mat Gar Mat Gar Fac Gar Fac Gar Matter Collected 4541 | 227 366 61 737 415 . 24 187 245 330 357 318 1134 140 . Remotely . | . . . . . . . . . . . . . . . Salvage Created 6965 | . 413 273 933 293 . 69 358 851 1085 833 268 928 500 161 Parts 404 | . 27 11 63 11 . 3 19 46 71 56 16 42 32 7 Haulers Intercepted 3 | . 1 . . . . . . . 2 . . . . . Recyclers Shooed 8 | . . 1 1 3 . . . . 1 . . . 2 . Parts Field Recycled . | . . . . . . . . . . . . . . . Retrieved Matter . | . . . . . . . . . . . . . . . Parts Self-Destructed . | . . . . . . . . . . . . . . . Prevented . | . . . . . . . . . . . . . . . Parts Restored . | . . . . . . . . . . . . . . . Kills | -11 -10 -10 -9 -9 -9 -8 -8 -8 -8 -8 -7 -7 -7 -7 ------- Run | Yrd Mat Min Mat Min Exi Min Mat Gar Mat Gar Fac Gar Fac Gar Combat Hostiles Destroyed 169 | . 13 5 32 17 . . 6 21 17 19 5 22 9 3 Guns 84 | . 13 5 19 5 . . 2 1 10 16 . 7 6 . Cannons 37 | . . . 13 . . . 3 15 1 . 1 4 . . AOE 38 | . . . . 12 . . . 4 5 1 3 8 2 3 Classes Destroyed 20 | . 3 1 3 3 . . 2 1 2 1 . 3 1 . Worker 7 | . . . . . . . . . 2 . 3 . 2 . Builder 2 | . . . . 1 . . . . . . . . 1 . Tunneler 1 | . . . . . . . . . . . . . 1 . Hauler 3 | . 1 . . . . . . . 2 . . . . . Recycler 5 | . . 1 . 1 . 1 . . 1 . 1 . . . Mechanic 1 | . . . . . . . . . 1 . . . . . Operator 3 | . . . . . . . 1 . 2 . . . . . Watcher 6 | . . . 3 . . . . . 2 . 1 . . . Swarmer 36 | . 6 . 6 3 . . . 4 5 6 . 3 3 . Saboteur 3 | . . . . . . . . 3 . . . . . . Grunt 63 | . 7 5 19 3 . . 2 11 2 4 . 6 2 2 Brawler 3 | . . . 2 . . . . . . . . 1 . . Duelist 2 | . . . . . . . . . . . . 2 . . Sentry 28 | . . . 5 . . . 3 3 8 5 2 1 1 . Demolisher 2 | . . . . 2 . . . . . . . . . . Specialist 1 | . . . . . . . . . . . . 1 . . Hunter 10 | . . . . . . . 1 . 2 2 . 3 2 . Programmer 11 | . . . . . . . . . . 2 3 4 1 1 Heavy 1 | . . . . . . . . . . . . 1 . . Assembled 12 | . . . . 12 . . . . . . . . . . Best Kill Streak 8 | . 3 2 8 7 . 1 3 3 7 3 6 3 3 2 Combat Bots Only 8 | . 3 2 8 7 . . 3 3 4 3 2 3 3 2 Max Kills in Single Turn 2 | . 2 1 2 2 . 1 1 1 2 1 2 2 2 2 Gunslinging 1 | . 1 . . . . . . . . . . . . . Exploded 2 | . . . . 2 . . . 1 1 1 1 2 1 2 Melee . | . . . . . . . . . . . . . . . Uniques/NPCs Destroyed . | . . . . . . . . . . . . . . . Combat | -11 -10 -10 -9 -9 -9 -8 -8 -8 -8 -8 -7 -7 -7 -7 -------- Run | Yrd Mat Min Mat Min Exi Min Mat Gar Mat Gar Fac Gar Fac Gar Hostile Shots Fired 931 | . 45 28 157 25 . . 76 55 42 121 88 172 112 10 Missed 380 | . 10 7 54 2 . . 26 24 25 55 48 68 58 3 Hits 551 | . 35 21 103 23 . . 50 31 17 66 40 104 54 7 Melee 2 | . . . . 2 . . . . . . . . . . Projectile 549 | . 35 21 103 21 . . 50 31 17 66 40 104 54 7 AOE 11 | . . . . 11 . . . . . . . . . . Critical Strikes 20 | . . 1 5 . . . 1 4 3 1 1 2 . 2 Damage Taken 6310 | . 333 215 1033 526 . . 535 396 217 683 289 1355 610 118 Core 1384 | . 55 22 171 103 . . 116 34 36 144 104 372 210 17 Absorbed by Shields 45 | . . . 9 . . . . . . 36 . . . . Redirected to Shielding 33 | . 33 . . . . . . . . . . . . . Ignored by Resistances 1860 | . 102 61 309 147 . . 160 114 62 202 97 393 179 34 Regen/Repaired (Parts) 553 | . . . 181 18 . . 13 42 73 . 178 . 48 . Core Remaining (%) 60 | 100 . 69 . . . 31 . . . 40 . . . . Volleys Fired 611 | . 38 15 76 24 . 5 23 47 36 117 19 160 38 13 Largest 2 | . 2 2 2 2 . 1 2 2 2 2 2 2 2 2 Hottest 138 | . 80 80 80 64 . 20 126 130 126 100 138 130 130 86 Shots Fired 954 | . 76 30 125 40 . 5 46 80 69 180 23 201 61 18 Gun 705 | . 76 30 65 22 . 5 32 27 68 175 5 136 56 8 Cannon 153 | . . . 60 . . . 14 53 1 . 6 19 . . Launcher 56 | . . . . 18 . . . . . . 7 16 5 10 Special 40 | . . . . . . . . . . 5 5 30 . . Kinetic 241 | . . 3 104 18 . 5 32 . . 31 . 44 4 . Thermal 134 | . 76 27 . . . . . 27 4 . . . . . Explosive 41 | . . . . 18 . . . . . . 7 16 . . Electromagnetic 498 | . . . 21 4 . . 14 53 65 144 11 111 57 18 Robot Hit Streak 45 | . 22 22 23 6 . 4 15 28 39 45 19 34 29 6 Robot Miss Streak 5 | . 3 1 2 5 . 2 1 1 2 2 . 1 2 1 Penetration Max 1 | . . . . . . . . . . . . 1 . . Secondary Targets 7 | . 2 1 . . . . . . 1 1 . 1 1 . Max Gunslinging Chain 1 | . 1 1 . . . . . . 1 1 . 1 1 . Shots Hit Robots 688 | . 52 27 106 26 . 3 39 58 54 112 17 127 53 14 Core Hits 354 | . 25 13 55 48 . 2 15 27 31 36 12 56 29 5 Critical Kills . | . . . . . . . . . . . . . . . Critical Parts Destroyed 2 | . . . . . . . 1 . . . . 1 . . Critical Strikes 9 | . . . 1 . . . 1 2 1 1 1 2 . . Burn 2 | . . . . . . . . 2 . . . . . . Destroy 3 | . . . . . . . 1 . . . . 2 . . Blast 1 | . . . 1 . . . . . . . . . . . Corrupt 3 | . . . . . . . . . 1 1 1 . . . Melee Attacks 4 | . . . . . . . . 4 . . . . . . Thermal 4 | . . . . . . . . 4 . . . . . . Impact . | . . . . . . . . . . . . . . . Slashing . | . . . . . . . . . . . . . . . Piercing . | . . . . . . . . . . . . . . . Sneak Attacks . | . . . . . . . . . . . . . . . Combat Hostiles . | . . . . . . . . . . . . . . . Follow-up Attacks . | . . . . . . . . . . . . . . . Damage Inflicted 15216 | . 589 347 2393 1133 . 31 443 1481 1471 1423 1135 3198 1318 254 Guns 7480 | . 585 335 1254 234 . 31 162 219 974 1363 76 1418 778 51 Cannons 2972 | . . . 1015 . . . 281 1088 23 . 121 444 . . Explosions 4736 | . . . 112 899 . . . 174 474 60 938 1336 540 203 Melee . | . . . . . . . . . . . . . . . Ramming 28 | . 4 12 12 . . . . . . . . . . . Kinetic 3545 | . . 51 2033 193 . 31 162 . . 255 . 700 120 . Thermal 2293 | . 585 284 . . . . . 393 526 60 247 78 120 . Explosive 2960 | . . . 112 899 . . . . . . 691 1258 . . Electromagnetic 6390 | . . . 236 41 . . 281 1088 945 1108 197 1162 1078 254 Impact . | . . . . . . . . . . . . . . . Slashing . | . . . . . . . . . . . . . . . Piercing . | . . . . . . . . . . . . . . . Highest Corruption 8 | . . . 1 3 3 3 . . . 4 . . 8 8 Average Corruption 3 | . . . 1 2 3 3 . . . 3 . . 7 8 Corruption Purged . | . . . . . . . . . . . . . . . Corruption Blocked . | . . . . . . . . . . . . . . . Effects 72 | . . . 12 10 5 10 . . . 18 . . 10 7 Message Errors 17 | . . . 1 . 1 3 . . . 9 . . 2 1 Matter Fused 13 | . . . 5 1 . 1 . . . 4 . . . 2 Heat Flow Errors 9 | . . . . 2 4 1 . . . . . . 1 1 Energy Discharges 8 | . . . . . . 2 . . . . . . 5 1 Parts Fused 2 | . . . . 1 . . . . . . . . 1 . Data Loss (minor) 11 | . . . 4 1 . 3 . . . 1 . . 1 1 Data Loss (major) 5 | . . . 1 1 . . . . . 2 . . . 1 Misfires 3 | . . . . 3 . . . . . . . . . . Alerts 2 | . . . . 1 . . . . . 1 . . . . Weapon Failures 2 | . . . 1 . . . . . . 1 . . . . Overload Shots . | . . . . . . . . . . . . . . . Overflow Damage 282 | . . . 20 21 . . . 6 17 . 215 3 . . Projectiles 20 | . . . 20 . . . . . . . . . . . Explosions 262 | . . . . 21 . . . 6 17 . 215 3 . . Melee . | . . . . . . . . . . . . . . . Knockbacks 7 | . . . 7 . . . . . . . . . . . Impact . | . . . . . . . . . . . . . . . Kinetic 5 | . . . 5 . . . . . . . . . . . Secondary 2 | . . . 2 . . . . . . . . . . . Self-Inflicted Damage 173 | . 37 . . 28 . . . 31 19 . . 22 . 36 Shots 10 | . 1 . . 2 . . . 1 1 . . 2 . 3 Rammed 5 | . 2 1 2 . . . . . . . . . . . Targets Rammed 7 | . 2 2 3 . . . . . . . . . . . Kicked . | . . . . . . . . . . . . . . . Crushed 2 | . . 1 1 . . . . . . . . . . . Highest Temperature 432 | . 216 270 74 239 170 244 159 390 169 313 114 231 432 208 Average Temperature 69 | . 63 102 20 64 84 127 52 96 57 74 41 41 108 38 Received Heat Transfer 1873 | . 138 177 580 . . . 189 315 144 117 84 93 27 9 Effects 6 | . . . . 1 . . . 1 . 3 . 1 . . Energy Bleed 1 | . . . . . . . . . . . . 1 . . Interference 4 | . . . . 1 . . . . . 3 . . . . Damage (minor) 1 | . . . . . . . . 1 . . . . . . Siege Activations . | . . . . . . . . . . . . . . . Martial Activations . | . . . . . . . . . . . . . . . Shielding Activations . | . . . . . . . . . . . . . . . Robots Disrupted 2 | . . . . . . . . . . . . . 2 . Combat Hostiles 2 | . . . . . . . . . . . . . 2 . Robots Corrupted 12 | . . . 1 . . . 1 1 2 2 1 3 1 . Combat Hostiles 10 | . . . . . . . 1 1 1 2 1 3 1 . Parts Fried 39 | . . . 1 . . . 7 5 4 5 . 14 3 . Impact Corruptions . | . . . . . . . . . . . . . . . Robots Melted . | . . . . . . . . . . . . . . . Combat Hostiles . | . . . . . . . . . . . . . . . Parts Melted 5 | . 3 1 . . . . . 1 . . . . . . Heat Transferred 3777 | . 1325 625 . . . . . 916 611 . 150 100 50 . Parts Sabotaged . | . . . . . . . . . . . . . . . Parts Stolen . | . . . . . . . . . . . . . . . Parts Stripped . | . . . . . . . . . . . . . . . Power Chain Reactions 15 | . . . . . . . . 4 7 1 . 1 2 . Alert | -11 -10 -10 -9 -9 -9 -8 -8 -8 -8 -8 -7 -7 -7 -7 ------- Run | Yrd Mat Min Mat Min Exi Min Mat Gar Mat Gar Fac Gar Fac Gar Maximum Alert Level 4 | . 1 . 2 . . . 1 3 2 3 2 4 2 1 Low Security (%) 53 | 100 92 100 63 100 . 100 95 12 42 5 80 5 67 78 Level 1 12 | . 7 . 4 . . . 4 9 44 18 16 9 22 21 Level 2 19 | . . . 32 . . . . 37 13 43 2 36 9 . Level 3 12 | . . . . . . . . 40 . 33 . 27 . . Level 4 2 | . . . . . . . . . . . . 20 . . Level 5 . | . . . . . . . . . . . . . . . High Security . | . . . . . . . . . . . . . . . Max Security . | . . . . . . . . . . . . . . . Peak Influence 1311 | . 228 50 551 192 . 5 217 1012 446 1000 455 1311 617 287 Initial 559 | . . 17 . 160 . . . 9 424 135 455 85 559 187 Average 312 | . 107 9 219 126 . . 81 580 232 590 86 744 179 203 Influence Increases 9257 | . 458 150 1266 242 . 5 437 1053 855 945 801 1715 1190 140 Destroy 0b10 Robot/C 3980 | . 260 100 640 100 . . 120 420 400 380 200 720 540 100 Destroy 0b10 Robot/NC 170 | . 5 5 15 10 . 5 5 . 45 . 30 . 50 . Destroy Leader 824 | . 52 30 156 20 . . 50 10 138 40 94 60 154 20 Allied During Kill 149 | . . . . . . . . . 2 4 9 89 40 5 Trap Triggered on 0b10 10 | . . . . . . . 10 . . . . . . . Successful Hack 479 | . 46 . 58 . . . 27 38 38 12 141 8 111 . Select Force Hacks 270 | . 30 . 60 . . . 30 . 60 . 30 . 60 . Disable Machine 243 | . 18 . 27 9 . . . . . . 153 36 . . Anti-Garrison Action 1250 | . . . . . . . . 450 . 350 . 450 . . Destroy Structure 697 | . 32 . 40 103 . . . 30 22 69 69 277 40 15 Partial Spotted 240 | . . . 60 . . . . 30 75 30 . 30 15 . Lose Combat Pursuer 945 | . 15 15 210 . . . 195 75 75 60 75 45 180 . Influence Decreases 8980 | . 404 204 779 657 72 5 420 58 1628 184 1662 624 2116 167 Entered New Map 2523 | . . 37 . 327 72 . . 8 588 104 545 54 671 117 Time Decay 3723 | . 404 167 709 270 . 5 410 . 680 . 518 . 560 . Lost Part 490 | . . . 70 60 . . 10 50 . 60 30 140 60 10 Lost Ally 609 | . . . . . . . . . 60 20 119 280 90 40 Purge Threat 1635 | . . . . . . . . . 300 . 450 150 735 . Squads Dispatched 35 | . 2 . 5 . . . 2 . 5 . 6 . 15 . Investigation 20 | . 2 . 4 . . . 2 . 3 . 2 . 7 . Extermination 7 | . . . . . . . . . . . 4 . 3 . Reinforcement 4 | . . . . . . . . . 2 . . . 2 . Assault 1 | . . . 1 . . . . . . . . . . . Garrison 3 | . . . . . . . . . . . . . 3 . Intercept . | . . . . . . . . . . . . . . . Searches Triggered . | . . . . . . . . . . . . . . . Unchained Authorized 1 | . . . . . . . . . . . 1 . . . Construction Impeded 2 | . . . . . . . . . 1 . . . 1 . Haulers Reinforced . | . . . . . . . . . . . . . . . Active Scanning Responses . | . . . . . . . . . . . . . . . Cargo Convoy Interrupts 1 | . . . . . . . . . . . . . 1 . Stealth | -11 -10 -10 -9 -9 -9 -8 -8 -8 -8 -8 -7 -7 -7 -7 --------- Run | Yrd Mat Min Mat Min Exi Min Mat Gar Mat Gar Fac Gar Fac Gar Distress Signals 21 | . 2 . 2 1 . . . . 5 . 2 . 9 . Communications Jammed . | . . . . . . . . . . . . . . . Distress Signals . | . . . . . . . . . . . . . . . Times Spotted 332 | . 23 6 63 18 . . 25 16 32 26 28 40 50 5 Peak Tracking Total 9 | . 4 2 9 4 . . 8 3 7 3 5 6 7 3 Tactical Retreats 36 | . 1 1 4 . . . 5 4 4 4 3 2 8 . Traps | -11 -10 -10 -9 -9 -9 -8 -8 -8 -8 -8 -7 -7 -7 -7 ------- Run | Yrd Mat Min Mat Min Exi Min Mat Gar Mat Gar Fac Gar Fac Gar Traps Triggered 25 | . 3 . . . . . 1 5 . 7 1 5 3 . Indirectly 1 | . . . . . . . . . . . . . 1 . Trap Hack Attempts . | . . . . . . . . . . . . . . . Triggered . | . . . . . . . . . . . . . . . Disarmed . | . . . . . . . . . . . . . . . Reprogrammed . | . . . . . . . . . . . . . . . Reused 1 | . . . . . . . 1 . . . . . . . Traps Extracted . | . . . . . . . . . . . . . . . Installed 1 | . . . . . . . 1 . . . . . . . Triggered 1 | . . . . . . . 1 . . . . . . . Most Traps Carried 1 | . . . . 1 1 1 1 . . . . . . . Objects Rigged 2 | . . . 2 . . . . . . . . . . . Exploded 1 | . . . 1 . . . . . . . . . . . Machines | -11 -10 -10 -9 -9 -9 -8 -8 -8 -8 -8 -7 -7 -7 -7 ---------- Run | Yrd Mat Min Mat Min Exi Min Mat Gar Mat Gar Fac Gar Fac Gar Machines Disabled 43 | . 2 . 3 1 . . . 3 . 5 17 12 . . Max in Single Turn 14 | . 2 . 1 1 . . . 1 . 1 14 3 . . Garrison Access 4 | . . . . . . . . . . . 3 . 1 . Garrison Relay 15 | . . . . . . . . 3 . 5 . 7 . . Machines Repaired . | . . . . . . . . . . . . . . . Machines Dismantled . | . . . . . . . . . . . . . . . Machines Sabotaged . | . . . . . . . . . . . . . . . Overloaded Fab Kills . | . . . . . . . . . . . . . . . Hacking | -11 -10 -10 -9 -9 -9 -8 -8 -8 -8 -8 -7 -7 -7 -7 --------- Run | Yrd Mat Min Mat Min Exi Min Mat Gar Mat Gar Fac Gar Fac Gar Machines Accessed 116 | . 8 . 17 . 1 . 5 4 16 3 32 3 27 . Terminals 67 | . 7 . 11 . . . 2 4 10 3 15 3 12 . Fabricators 10 | . . . . . . . . . . . 5 . 5 . Repair Stations 7 | . . . 2 . . . . . 1 . 3 . 1 . Recycling Units 12 | . 1 . 2 . . . 1 . 2 . 3 . 3 . Scanalyzers 10 | . . . 2 . . . 1 . 2 . 2 . 3 . Garrison Access 9 | . . . . . . . 1 . 1 . 4 . 3 . Total Hacks 540 | . 30 . 77 . 1 . 22 12 77 9 161 20 131 . Successful 343 | . 21 . 51 . 1 . 15 5 50 2 108 7 83 . Failed 195 | . 8 . 26 . . . 6 7 27 7 53 13 48 . Catastrophic 24 | . 1 . 1 . . . 2 1 4 1 6 . 8 . Database Lockouts 2 | . 1 . . . . . 1 . . . . . . . Manual 344 | . 22 . 49 . 1 . 16 7 47 4 114 15 69 . Terminals 399 | . 29 . 61 . . . 11 12 62 9 109 20 86 . Fabricators 33 | . . . . . . . . . . . 12 . 21 . Repair Stations 36 | . . . 11 . . . . . 4 . 17 . 4 . Recycling Units 17 | . 1 . 2 . . . 1 . 2 . 6 . 5 . Scanalyzers 23 | . . . 3 . . . 3 . 7 . 3 . 7 . Garrison Access 31 | . . . . . . . 7 . 2 . 14 . 8 . Terminal Hacks 149 | . 14 . 21 . 1 . 3 3 18 1 45 4 39 . Record 2 | . . . . . . . . . . . 2 . . . Part Schematic 12 | . . . . . . . . . . . 5 . 7 . Robot Schematic 3 | . . . . . . . . . . . . . 3 . Robot Analysis 35 | . 8 . 5 . . . . . 4 . 17 . 1 . Prototype ID Bank 27 | . 3 . 7 . . . 1 . 6 . 5 . 5 . Open DSF 1 | . . . . . . . . . . . 1 . . . Level Access Points 3 | . . . 1 . . . . . . . 1 . 1 . Branch Access Points 5 | . . . 2 . . . . . . . 2 . 1 . Emergency Access Points 1 | . . . . . . . . . . . . 1 . . Machine Index 1 | . . . 1 . . . . . . . . . . . Terminal Index 7 | . 1 . 1 . . . 1 . 1 . 1 1 1 . Fabricator Index 2 | . . . . . . . . . . . 1 . 1 . Repair Station Index 3 | . . . 1 . . . . . . . 1 . 1 . Recycling Unit Index 6 | . . . 1 . . . 1 . 1 . 1 . 2 . Scanalyzer Index 3 | . . . . . . . . . 1 . 1 . 1 . Garrison Index 2 | . . . . . . . . . . . 1 . 1 . Unreport Threat 11 | . . . . . . . . . 2 . 3 1 5 . Locate Traps 6 | . 1 . 2 . . . . . . . . . 3 . Recall Investigation 1 | . . . . . . . . . . . . . 1 . Recall Extermination 1 | . . . . . . . . . . . 1 . . . Recall Reinforcements 1 | . . . . . . . . . 1 . . . . . Registered Prototypes 3 | . 1 . . . . . . . . . 1 . 1 . Zone Layout 7 | . . . . . . . . . 2 . 1 . 4 . Garrison Registry 2 | . . . . . . . . 1 . 1 . . . . Patrol Navigation 1 | . . . . . . . . 1 . . . . . . Security Stations 2 | . . . . . . . . 1 . . . 1 . . Proto ID Catalog 1 | . . . . . 1 . . . . . . . . . Fabricator Hacks 2 | . . . . . . . . . . . . . 2 . Load Schematic 1 | . . . . . . . . . . . . . 1 . Build 1 | . . . . . . . . . . . . . 1 . Repair Station Hacks 32 | . . . 10 . . . . . 4 . 14 . 4 . Scan Component 15 | . . . 4 . . . . . 2 . 7 . 2 . Repair 15 | . . . 4 . . . . . 2 . 7 . 2 . Refit 2 | . . . 2 . . . . . . . . . . . Recycling Unit Hacks 1 | . . . . . . . . . . . 1 . . . Report Inventory 1 | . . . . . . . . . . . 1 . . . Scanalyzer 22 | . . . 3 . . . 3 . 7 . 3 . 6 . Insert Component 5 | . . . . . . . . . 3 . 1 . 1 . Analyze 3 | . . . . . . . . . 2 . . . 1 . Retrieve Study 14 | . . . 3 . . . 3 . 2 . 2 . 4 . Garrison Access Hacks 11 | . . . . . . . 1 . 1 . 4 . 5 . Unlock Access 5 | . . . . . . . 1 . 1 . 1 . 2 . Seal Access 4 | . . . . . . . . . . . 3 . 1 . Coupler Status 2 | . . . . . . . . . . . . . 2 . Unauthorized Hacks 126 | . 7 . 17 . . . 8 2 20 1 41 3 27 . Terminals 83 | . 6 . 15 . . . 2 2 17 1 23 3 14 . Assimilate 10 | . . . . . . . . . 3 . 6 . 1 . Botnet 54 | . 6 . 9 . . . 2 1 10 1 13 3 9 . Detonate 1 | . . . 1 . . . . . . . . . . . Disrupt 13 | . . . 3 . . . . 1 3 . 3 . 3 . Operators 5 | . . . 2 . . . . . 1 . 1 . 1 . Fabricators 17 | . . . . . . . . . . . 9 . 8 . Report 2 | . . . . . . . . . . . 1 . 1 . Liberate 5 | . . . . . . . . . . . 2 . 3 . Fabnet 8 | . . . . . . . . . . . 4 . 4 . Haulers 2 | . . . . . . . . . . . 2 . . . Repair Stations . | . . . . . . . . . . . . . . . Recycling Units 13 | . 1 . 2 . . . 1 . 2 . 4 . 3 . Reject 1 | . . . . . . . . . . . 1 . . . Recyclers 1 | . . . . . . . . . . . 1 . . . Mask 2 | . . . . . . . . . . . 1 . 1 . Tunnel 9 | . 1 . 2 . . . 1 . 2 . 1 . 2 . Scanalyzers . | . . . . . . . . . . . . . . . Garrison Access 13 | . . . . . . . 5 . 1 . 5 . 2 . Broadcast 4 | . . . . . . . 1 . . . 2 . 1 . Decoy 1 | . . . . . . . 1 . . . . . . . Redirect 1 | . . . . . . . 1 . . . . . . . Reprogram 2 | . . . . . . . . . . . 1 . 1 . Intercept 3 | . . . . . . . 1 . 1 . 1 . . . Watchers 2 | . . . . . . . 1 . . . 1 . . . Data Cores Recovered 2 | . . . . . . . 1 . 1 . . . . . Used 2 | . . . . . . . 1 . 1 . . . . . Hacking Detections 78 | . 7 . 10 . . . 4 3 14 3 16 3 18 . Full Trace Events 4 | . 1 . 1 . . . . . 1 . . . 1 . Feedback Events 1 | . . . 1 . . . . . . . . . . . Corruption 1 | . . . 1 . . . . . . . . . . . Feedback Blocked . | . . . . . . . . . . . . . . . Robot Schematics Acquired 3 | . . . . . . . . . . . . . 3 . Robots Built . | . . . . . . . . . . . . . . . Authchips . | . . . . . . . . . . . . . . . Time . | . . . . . . . . . . . . . . . Total Robot Build Rating . | . . . . . . . . . . . . . . . Part Schematics Acquired 15 | . . . . . . . . . 2 . 5 . 8 . Parts Built 1 | . . . . . . . . . . . . . 1 . Authchips . | . . . . . . . . . . . . . . . Time 47 | . . . . . . . . . . . . . 47 . Total Part Build Rating 5 | . . . . . . . . . . . . . 5 . Part Studies Acquired 14 | . . . 3 . . . 3 . 2 . 2 . 4 . Parts Repaired 15 | . . . 4 . . . . . 2 . 7 . 2 . Time 418 | . . . 140 . . . . . 76 . 161 . 41 . Parts Recycled . | . . . . . . . . . . . . . . . Recycled Matter . | . . . . . . . . . . . . . . . Retrieved Matter . | . . . . . . . . . . . . . . . Retrieved Components . | . . . . . . . . . . . . . . . Parts Scanalyzed 3 | . . . . . . . . . 2 . . . 1 . Part Schematics Acquired 3 | . . . . . . . . . 2 . . . 1 . Parts Damaged . | . . . . . . . . . . . . . . . Bothacking | -11 -10 -10 -9 -9 -9 -8 -8 -8 -8 -8 -7 -7 -7 -7 ------------ Run | Yrd Mat Min Mat Min Exi Min Mat Gar Mat Gar Fac Gar Fac Gar Used RIF Installer 6 | . . . . . . . . 2 . 2 . 2 . . Code Merge 1 | . . . . . . . . . . . . 1 . . Command Fork 1 | . . . . . . . . . . 1 . . . . Zone Cloak 2 | . . . . . . . . . . 1 . 1 . . Patrol Navigation 1 | . . . . . . . . 1 . . . . . . Robots Hacked 21 | . . . . . . . . . . 5 5 11 . . Non-combat . | . . . . . . . . . . . . . . . Combat 21 | . . . . . . . . . . 5 5 11 . . Robot Hacks Applied 21 | . . . . . . . . . . 5 5 11 . . parse_system 2 | . . . . . . . . . . . 1 1 . . overwrite_iff 3 | . . . . . . . . . . . 3 . . . formatsys_high 16 | . . . . . . . . . . 5 1 10 . . Relay Couplers Released 64 | . . . . . . . . 13 . 21 . 30 . . Machine Destruction 64 | . . . . . . . . 13 . 21 . 30 . . Attached 10 | . . . . . . . . . . 4 . 6 . . Merged Code Value 61 | . . . . . . . . . . . . 61 . . Fabnet Peak Effective % . | . . . . . . . . . . . . . . . Robots Rewired 15 | . . . . . . . . 3 . . . 11 1 . Allies Hacked 2 | . . . . . . . . . . . . 2 . . Hacks Repelled 2 | . . . . . . . . . . . . 1 . 1 Allies | -11 -10 -10 -9 -9 -9 -8 -8 -8 -8 -8 -7 -7 -7 -7 -------- Run | Yrd Mat Min Mat Min Exi Min Mat Gar Mat Gar Fac Gar Fac Gar Total Allies 50 | . . . . 4 . . . 3 1 6 11 22 3 . Largest Group 12 | . . . . 3 1 . . 3 3 6 7 12 8 2 Highest-Rated Group 311 | . . . . 40 31 . . 72 72 94 110 311 203 61 Highest-Rated Ally 40 | . . . . 31 31 . . 24 24 16 32 40 40 40 Total Orders 16 | . . . . . . . . . . 8 3 2 2 1 STAY 11 | . . . . . . . . . . 6 2 1 1 1 FOLLOW 5 | . . . . . . . . . . 2 1 1 1 . Ally Attacks 230 | . . . . 18 . . . . 8 8 23 77 91 5 Total Damage 4583 | . . . . 99 . . . . 174 93 525 1438 2095 159 Kills 52 | . . . . 1 . . . . 3 . 6 14 26 2 Allies Corrupted 4 | . . . . . . . . . . . 1 2 . 1 Allies Melted . | . . . . . . . . . . . . . . . Intel | -11 -10 -10 -9 -9 -9 -8 -8 -8 -8 -8 -7 -7 -7 -7 ------- Run | Yrd Mat Min Mat Min Exi Min Mat Gar Mat Gar Fac Gar Fac Gar Active Infowar (turns) 4348 | . 40 . 1113 . . . 775 902 619 433 281 185 . . Optics 1092 | . . . 1092 . . . . . . . . . . . Terrain 901 | . 40 . 861 . . . . . . . . . . . Traps 3195 | . . . . . . . 775 902 619 433 281 185 . . Robot Analysis Total 32 | . 8 . 5 . . . . . 3 . 15 . 1 . Derelict Logs Recovered 2 | . . 1 . 1 . . . . . . . . . . Drone Launches . | . . . . . . . . . . . . . . . Drone Recoveries . | . . . . . . . . . . . . . . . Exploration | -11 -10 -10 -9 -9 -9 -8 -8 -8 -8 -8 -7 -7 -7 -7 ------------- Run | Yrd Mat Min Mat Min Exi Min Mat Gar Mat Gar Fac Gar Fac Gar Turns Passed 15421 | 51 909 934 1632 556 292 569 1003 2189 1361 1418 1385 1770 1132 220 Spaces Moved 16594 | 35 495 532 1736 506 232 470 835 1675 1484 1563 2810 2046 2101 74 Core 58 | 6 . . . 23 . . . . . . . 29 . . Treads 1183 | . 302 532 349 . . . . . . . . . . . Legs 798 | 29 193 . . . . . . 554 22 . . . . . Wheels 117 | . . . . . . 43 74 . . . . . . . Hover 1680 | . . . 7 1 . . 761 373 . . . 179 285 74 Flight 12758 | . . . 1380 482 232 427 . 748 1462 1563 2810 1838 1816 . Fastest Speed 29 | 50 120 160 37 37 120 100 52 30 29 29 32 29 30 56 Average Speed 58 | 109 144 160 63 84 120 118 56 96 31 30 34 46 35 56 Slowest Speed 300 | 120 160 160 300 150 120 120 125 260 140 32 120 300 120 56 Overloaded Moves . | . . . . . . . . . . . . . . . Propulsion Burnouts . | . . . . . . . . . . . . . . . Robots Hopped 124 | . . . 48 1 . . . . 5 . 26 6 38 . Potential Cave-ins . | . . . . . . . . . . . . . . . Cave-ins Triggered . | . . . . . . . . . . . . . . . Exploration Rate (%) 67 | 3 89 99 88 82 46 89 47 80 89 72 73 92 54 8 Regions Visited 14 Branch Regions 4 Pre-discovered Areas 12 | . 1 2 2 1 . . 1 . 2 . 1 . 2 . Known Exits Taken 10 | . 1 1 1 1 1 1 1 . 1 . 1 . 1 . Unknown Exits Taken 1 | 1 . . . . . . . . . . . . . . Scrap Searched 4 | . . 1 . 2 . 1 . . . . . . . . Spaces Dug 1 | . . . 1 . . . . . . . . . . . Terrain Destroyed 487 | . 30 . 50 155 . . . 16 20 10 72 128 6 . Melee . | . . . . . . . . . . . . . . . Projectile 2 | . . . 2 . . . . . . . . . . . AOE 485 | . 30 . 48 155 . . . 16 20 10 72 128 6 . Terrain Rammed . | . . . . . . . . . . . . . . . Walls Destroyed . | . . . . . . . . . . . . . . . Machines Disabled . | . . . . . . . . . . . . . . . Actions | -11 -10 -10 -9 -9 -9 -8 -8 -8 -8 -8 -7 -7 -7 -7 --------- Run | Yrd Mat Min Mat Min Exi Min Mat Gar Mat Gar Fac Gar Fac Gar Total 21196 | 44 616 583 2100 591 245 479 1322 2162 2293 2316 3163 2658 2388 236 Wait 3444 | 2 54 24 265 39 13 3 437 343 728 492 317 328 250 149 Move 16341 | 34 494 531 1643 503 231 469 834 1674 1473 1561 2757 2033 2030 74 Hop 113 | . . . 44 1 . . . . 5 . 26 5 32 . Pick Up 70 | 2 12 2 16 5 . . 3 2 4 3 11 10 . . Fast Attach 84 | 5 4 1 12 3 . 1 5 8 3 9 7 16 10 . Attach 35 | . 2 . 9 3 . . . 1 2 3 6 8 1 . Detach 18 | . 1 . 5 . . . . 1 1 2 3 5 . . Swap 142 | 1 2 4 7 9 . . 11 17 30 19 11 28 3 . Drop 98 | . 7 4 20 4 . 1 8 11 11 10 6 11 5 . Fire 611 | . 38 15 76 24 . 5 23 47 36 117 19 160 38 13 Melee 4 | . . . . . . . . 4 . . . . . . Ram . | . . . . . . . . . . . . . . . Kick . | . . . . . . . . . . . . . . . Crush 7 | . 2 2 3 . . . . . . . . . . . Escape Stasis 180 | . . . . . . . . 41 . 96 . 28 15 . Rewire 48 | . . . . . 1 . . 13 . 4 . 26 4 . Trap 1 | . . . . . . . 1 . . . . . . . Miscellaneous . | . . . . . . . . . . . . . . . Route ------- -11/Scrapyard -10/Materials (discovered 3 exits: *Mat x2 / *Min) -10/Mines (discovered 2 exits: *Mat x2) -9/Materials (discovered 6 exits: *Mat x3 / *Min x2 / *Sto) -9/Mines (discovered 3 exits: *Mat x2 / *Exi) -9/Exiles -8/Mines (discovered 2 exits: *Mat x2) -8/Materials (discovered 2 exits: *Fac / Gar) -8/Garrison (discovered 4 exits: *Fac x3 / *Mat) -8/Materials (discovered 4 exits: *Fac x3 / Gar) -8/Garrison (discovered 3 exits: *Fac x3) -7/Factory (discovered 7 exits: *Fac x4 / *Low x2 / Gar) -7/Garrison (discovered 4 exits: *Fac x4) -7/Factory (discovered 8 exits: *Fac x4 / *Low x2 / Gar / Gar) -7/Garrison History --------- Turn | Location | Event 5 | -11/Scrapyard | Discovered new exit (range 15) 52 | -11/Scrapyard | Entered Materials 202 | -10/Materials | Discovered new exit (range 15) 307 | -10/Materials | Build established: Mutant 667 | -10/Materials | Discovered new exit (range 15) 688 | -10/Materials | Identified exit to Materials 747 | -10/Materials | Discovered exit to Materials (range 3) 832 | -10/Materials | Identified exit to Mines 848 | -10/Materials | Central database locked down 961 | -10/Materials | Entered Mines 998 | -10/Mines | A weapon hastily lodged in a ceiling crevice suddenly fell to the ground 1185 | -10/Mines | Learned location of Storage (-9) 1235 | -10/Mines | Discovered exit to Materials (range 15) 1286 | -10/Mines | Received a Rocket Launcher from a helpful Derelict 1307 | -10/Mines | Discovered exit to Materials (range 16) 1365 | -10/Mines | Learned location of Mines (-8) 1432 | -10/Mines | Found a Scrap Suit stashed away for nefarious purposes 1438 | -10/Mines | Found Scrap Suit 1895 | -10/Mines | Entered Materials 1895 | -9/Materials | Evolved 2 slots: Utility x2 2206 | -9/Materials | Discovered new exit (range 5) 2210 | -9/Materials | Identified exit to Materials 2356 | -9/Materials | Discovered new exit (range 7) 2732 | -9/Materials | Discovered new exit (range 3) 2733 | -9/Materials | Identified exit to Storage 2753 | -9/Materials | Discovered exit to Materials (range 8) 2882 | -9/Materials | Discovered exit to Materials (range 11) 3002 | -9/Materials | Destroyed 8 combat bots 3034 | -9/Materials | Repaired EM Pulse Gun+ 3055 | -9/Materials | Build established: Hacker-Mutant 3062 | -9/Materials | Repaired EM Pulse Gun+ 3249 | -9/Materials | Repaired Mak. Shrapnel Gun 3267 | -9/Materials | Identified exit to Mines 3322 | -9/Materials | Lost 3 parts (1p1n1w) 3386 | -9/Materials | Repaired Mak. Shrapnel Gun 3495 | -9/Materials | First assault squad dispatched 3527 | -9/Materials | Entered Mines 3528 | -9/Mines | Assembled infested the area 3533 | -9/Mines | Assisted by a Guerilla fighting off Assembled 3562 | -9/Mines | Assisted by bots powering up and referring to "LRC-V3" 3594 | -9/Mines | YI-UF0 nonchalantly dropped a Grenade Launcher on the ground 3650 | -9/Mines | Discovered exit to Materials (range 15) 3689 | -9/Mines | Destroyed 7 combat bots 3727 | -9/Mines | Lost 3 allies 3789 | -9/Mines | Core integrity fell below 50% 3797 | -9/Mines | Discovered exit to Materials (range 15) 3858 | -9/Mines | Escorted by a lone wolf Derelict 3861 | -9/Mines | Lost 5 parts (1p2n2w) 3943 | -9/Mines | Found a hidden stash of uninstalled traps 4075 | -9/Mines | Deemed a non-threat by the Exiles lab entrance 4076 | -9/Mines | Discovered new exit (range 5) 4080 | -9/Mines | Identified exit to Exiles 4083 | -9/Mines | Entered Exiles 4083 | -9/Exiles | Accompanied by 1 ally 4129 | -9/Exiles | Met 8R-AWN 4146 | -9/Exiles | Met EX-HEX 4195 | -9/Exiles | Met EX-BIN 4208 | -9/Exiles | Aligned with FarCom system 4209 | -9/Exiles | Given EX-Vault access code 4238 | -9/Exiles | Opened EX-Vault 4267 | -9/Exiles | Warned to stay clear of 0b10 Research branches 4360 | -9/Exiles | Discovered new exit (range 14) 4373 | -9/Exiles | Identified exit to Mines 4375 | -9/Exiles | Entered Mines 4397 | -8/Mines | Discovered exit to Materials (range 6) 4763 | -8/Mines | Discovered exit to Materials (range 4) 4944 | -8/Mines | Entered Materials 4944 | -8/Materials | Evolved 2 slots: Propulsion x1, Utility x1 5118 | -8/Materials | Discovered new exit (range 5) 5130 | -8/Materials | Identified exit to Garrison 5797 | -8/Materials | Identified exit to Factory 5894 | -8/Materials | Central database locked down 5947 | -8/Materials | Entered Garrison 6017 | -8/Garrison | Triggered checkpoint 6115 | -8/Garrison | Installed Relay Interface Framework 6168 | -8/Garrison | Learned Factory security intel 6249 | -8/Garrison | Garrison Relay disabled 6251 | -8/Garrison | Garrison Relay disabled 6311 | -8/Garrison | Expanded RIF knowledge: Patrol Navigation 6375 | -8/Garrison | Build established: Hacker-Sprinter 6516 | -8/Garrison | Discovered exit to Factory (range 9) 6589 | -8/Garrison | Triggered checkpoint 6697 | -8/Garrison | Build established: Hacker-Mutant 6745 | -8/Garrison | Triggered checkpoint 6839 | -8/Garrison | Triggered checkpoint 6877 | -8/Garrison | Discovered exit to Factory (range 47) 6877 | -8/Garrison | Discovered exit to Factory (range 13) 6877 | -8/Garrison | Discovered exit to Factory (range 45) 6877 | -8/Garrison | Discovered new exit (range 53) 6902 | -8/Garrison | Garrison Relay disabled 7191 | -8/Garrison | Triggered checkpoint 7355 | -8/Garrison | Triggered checkpoint 7461 | -8/Garrison | Identified exit to Materials 7874 | -8/Garrison | Build established: Scavenger-Mutant 8136 | -8/Garrison | Entered Materials 8136 | -8/Materials | Accompanied by 3 allies 8427 | -8/Materials | Discovered exit to Factory (range 11) 8515 | -8/Materials | Repaired Lgt. Nuclear Core+ 8536 | -8/Materials | Build established: Hacker-Sprinter 8613 | -8/Materials | Repaired Shock Rifle 8667 | -8/Materials | Discovered exit to Factory (range 10) 9327 | -8/Materials | Discovered exit to Factory (range 7) 9476 | -8/Materials | Identified exit to Garrison 9497 | -8/Materials | Entered Garrison 9543 | -8/Garrison | Triggered checkpoint 9568 | -8/Garrison | Garrison Relay disabled 9659 | -8/Garrison | Triggered checkpoint 9910 | -8/Garrison | Triggered checkpoint 9920 | -8/Garrison | Discovered exit to Factory (range 14) 9975 | -8/Garrison | Expanded RIF knowledge: Zone Cloak 10109 | -8/Garrison | Lost 4 parts (1p1n2w) 10199 | -8/Garrison | Triggered checkpoint 10218 | -8/Garrison | Core integrity fell below 50% 10228 | -8/Garrison | Triggered checkpoint 10403 | -8/Garrison | Triggered checkpoint 10445 | -8/Garrison | Garrison Relay disabled 10450 | -8/Garrison | Garrison Relay disabled 10526 | -8/Garrison | Expanded RIF knowledge: Command Fork 10585 | -8/Garrison | Discovered exit to Factory (range 50) 10585 | -8/Garrison | Discovered exit to Factory (range 23) 10585 | -8/Garrison | Discovered exit to Factory (range 43) 10587 | -8/Garrison | Triggered checkpoint 10596 | -8/Garrison | Garrison Relay disabled 10649 | -8/Garrison | Triggered checkpoint 10659 | -8/Garrison | Garrison Relay disabled 10793 | -8/Garrison | Triggered checkpoint 10915 | -8/Garrison | Entered Factory 10915 | -7/Factory | Accompanied by 5 allies 10915 | -7/Factory | Evolved 2 slots: Utility x2 11041 | -7/Factory | Identified exit to DSF 11103 | -7/Factory | Lost 3 parts (2n1w) 11122 | -7/Factory | Lost 3 allies 11312 | -7/Factory | Lost 3 allies 11332 | -7/Factory | Discovered new exit (range 6) 11334 | -7/Factory | Identified exit to Lower Caves 11379 | -7/Factory | Discovered new exit (range 10) 11382 | -7/Factory | Identified exit to Factory 11393 | -7/Factory | Build established: Hacker-Mutant 11664 | -7/Factory | Discovered exit to Factory (range 15) 11848 | -7/Factory | Repaired Shock Rifle+ 11980 | -7/Factory | Repaired Remote Datajack+ 12000 | -7/Factory | Repaired Lgt. Nuclear Core+ 12023 | -7/Factory | Repaired Xenon Bombardment Thruster+ 12103 | -7/Factory | Repaired Xenon Bombardment Thruster+ 12123 | -7/Factory | Repaired Trap Scanner 12144 | -7/Factory | Repaired Shock Rifle+ 12243 | -7/Factory | Unchained authorized (CL-0N3) 12292 | -7/Factory | Identified exit to Garrison 12300 | -7/Factory | Entered Garrison 12300 | -7/Garrison | Accompanied by 3 allies 12370 | -7/Garrison | Triggered checkpoint 12396 | -7/Garrison | Triggered checkpoint 12411 | -7/Garrison | Spotted B-75 Beast 12411 | -7/Garrison | Spotted B-75 Beast 12475 | -7/Garrison | Garrison Relay disabled 12512 | -7/Garrison | Triggered checkpoint 12566 | -7/Garrison | Garrison Relay disabled 12578 | -7/Garrison | Lost 3 allies 12628 | -7/Garrison | Heavy support dispatched to Factory 12717 | -7/Garrison | Lost 3 parts (1p1n1u) 12787 | -7/Garrison | H-XX Assembler disabled 12956 | -7/Garrison | Triggered checkpoint 12956 | -7/Garrison | Triggered checkpoint 13107 | -7/Garrison | Triggered checkpoint 13183 | -7/Garrison | Expanded RIF knowledge: Code Merge 13241 | -7/Garrison | Core integrity fell below 50% 13255 | -7/Garrison | Lost 5 parts (1p1n3w) 13267 | -7/Garrison | Discovered new exit (range 11) 13270 | -7/Garrison | Identified exit to Factory 13281 | -7/Garrison | Garrison Relay disabled 13288 | -7/Garrison | Garrison Relay disabled 13298 | -7/Garrison | Triggered checkpoint 13316 | -7/Garrison | Triggered checkpoint 13326 | -7/Garrison | Discovered exit to Factory (range 5) 13447 | -7/Garrison | Triggered checkpoint 13476 | -7/Garrison | Garrison Relay disabled 13489 | -7/Garrison | Discovered exit to Factory (range 12) 13502 | -7/Garrison | Learned Factory security intel 13554 | -7/Garrison | Build established: Hacker-Sprinter 13583 | -7/Garrison | Lost 3 allies 13653 | -7/Garrison | Discovered exit to Factory (range 10) 13696 | -7/Garrison | Triggered checkpoint 13704 | -7/Garrison | Triggered checkpoint 13763 | -7/Garrison | Garrison Relay disabled 13826 | -7/Garrison | P-70 Sage assimilated allied Marksman 4a 13836 | -7/Garrison | Expanded RIF knowledge: Zone Cloak 13872 | -7/Garrison | Lost 5 allies 13892 | -7/Garrison | Garrison Relay disabled 14025 | -7/Garrison | Lost 3 allies 14070 | -7/Garrison | Entered Factory 14070 | -7/Factory | Accompanied by 6 allies 14231 | -7/Factory | Identified exit to Garrison 14254 | -7/Factory | Garrison activated, responded to threat 14450 | -7/Factory | Fabricated Imp. Hacking Suite (x1) 14558 | -7/Factory | Repaired Lgt. Nuclear Core+ 14582 | -7/Factory | Repaired Xenon Bombardment Thruster+ 14654 | -7/Factory | Identified exit to Garrison 14868 | -7/Factory | Core integrity fell below 20% 14879 | -7/Factory | Cargo convoy interrupted 14909 | -7/Factory | Lost 6 parts (1p3n2w) 15202 | -7/Factory | Entered Garrison 15202 | -7/Garrison | Accompanied by 2 allies 15267 | -7/Garrison | Build established: Hacker-Mutant 15422 | -7/Garrison | Destroyed self with Advanced EMP Blaster Last Messages --------------- 15374_ P-60 Hacker resets G-50 Soldier, system corruption cleaned. 15374_ Slug penetrates G-50 Soldier. 15374_ G-50 Soldier destroyed. 15374_ G-47 Trooper destroyed. 15376_ P-60 Hacker resets G-47 Trooper, system corruption cleaned. 15378_ Slug penetrates G-47 Trooper. 15381_ P-60 Hacker destroyed. 15382_ Commando 4c destroyed. 15385_ P-60 Hacker resets G-47 Trooper, system corruption cleaned. 15387_ System Shield repels hacking attempt against Marksman 4b. 15387_ G-47 Trooper destroyed. 15388_ P-60 Hacker fails to hack Marksman 4b. 15393_ Slug penetrates P-60 Hacker. 15396_ P-60 Hacker fails to hack Marksman 4b. 15398_ Marksman 4b system terminally corrupted. 15400_ System corrupted: Matter fused (-8). 15400_ Shock Rifle+ destroyed. 15415_ EXLAJQBY24INCKWJMIV QC>D 15420_ P-60 Hacker misfires. 15422_ P-60 Hacker destroyed. Map ----- +----------------------------------------------------+ | ???????????????????????????????????????? ???????? | | ???????????????????????????????????????? #??????? | | ???????????????????????????????????????? ??????? | | ???????????????????????????????????????? ??????? | | ???????????????????????????????????????? ??????? | | ???????????????????????????????????????? #??????? | | ???????????????????????????????????????# #??????? | | ???????????????????????????????????????# #??????? | | ???????????????????????????????????????# #??????? | | ???????????????????????????????????????# #??????? | | ???????????????????????????????????????# #??????? | | ???????????????????????????????????????# #??????? | | ??????????????????###################### #??????? | | ??????????????????# =% =%=% #??????? | | ??????????????????# %= %=[!% #??????? | | ??????????????????# #### ##############""#??????? | | ??????????????????# #??# #??????????????????????? | | ??????????????????# #??#!#??????????????????????? | | ??????????????????# #??#|#??????????????????????? | | ??????????????????# #??#*#??????????????????????? | | ??????????????????# #??#%#??????????????????????? | | ??????????????????# #??#!#??????????????????????? | | ??????????????????# #??#!#??????????????????????? | | ??????????????????# #### #??????????????????????? | | ??????????????????# ## #??????????????????????? | | ??????????????????# # @#??????????????????????? | | ??????????????????# ####??????????????????????? | | ??????????????????# ###?????????????????????????? | | ??????????????????# #???????????????????????????? | | ??????????????????# #???????????????????????????? | | ??????????????????# #???????????????????????????? | | ??????????????????# #???????????????????????????? | | ??????????????????# #???????????????????????????? | | ?????????????C????# #???????????????????????????? | | ??????????????????# #???????????????????????????? | | ?????????????????? #???????????????????????????? | | ?????????????????? ????????????????????????????? | | ??????????????????## ????????????????????????????? | | ???????????????????? ????????????????????????????? | | ???????????????????? ????????????????????????????? | | ?????????????????????????????????????????????????? | | ??????????????????YY?????????????????????????????? | | ?????????????????????????????????????????????????? | | ?????????????????????????????????????????????????? | | ?????????????????????????????????????????????????? | | ?????????????????????????????????????????????????? | | ?????????????????????????????????????????????????? | | ?????????????????????????????????????????????????? | | | | | +----------------------------------------------------+ Best States ------------- Heat Dissipation 34 Energy Generation 16 Energy Capacity 290 Matter Stores 400 Matter Capacity 400 Sight Range 18 Terrain Scan Range 14 Terrain Scan Density 10 Additional Mass Support 9 Armor Coverage 150 Resistance: KI 20 Resistance: TH 20 Resistance: EX 20 Resistance: EM 20 Resistance: I 20 Resistance: S 20 Resistance: P 20 Propulsion Shielding 33 Evasion (%) 64 Targeting Accuracy 5 Launcher Accuracy 20 Recoil Reduction 2 Offensive Hacking 22 Defensive Hacking 30 Relay Coupler Types 2 Relay Coupler Value 101 Authchip Count 2 Item Schematics ----------------- Shock Rifle | -8/Materials | Scanalyzed Hacking Suite | -8/Materials | Scanalyzed Imp. Focal Shield | -7/Factory | Hacked Cold Fusion Reactor | -7/Factory | Hacked Adv. Plasma Cannon | -7/Factory | Hacked Disruptor Cannon | -7/Factory | Hacked Mic. Nuclear Core | -7/Factory | Hacked Imp. Hacking Suite | -7/Factory | Hacked Focal Shield | -7/Factory | Hacked Thermal Shield | -7/Factory | Hacked Magnetic Acceleration Cannon | -7/Factory | Hacked Adv. Shield Generator | -7/Factory | Hacked Imp. Deuterium Engine | -7/Factory | Hacked Hyp. Coil Gun | -7/Factory | Hacked System Shield | -7/Factory | Scanalyzed Robot Schematics ------------------ R-06 Scavenger | -7/Factory | Hacked L-41 Fighter | -7/Factory | Hacked T-07 Excavator | -7/Factory | Hacked Fabricated ------------ Imp. Hacking Suite | x1 | -7/Factory Repaired ---------- EM Pulse Gun | 11% | -9/Materials EM Pulse Gun | 17% | -9/Materials Mak. Shrapnel Gun | 38% | -9/Materials Mak. Shrapnel Gun | 12% | -9/Materials Lgt. Nuclear Core | 22% | -8/Materials Shock Rifle | 38% | -8/Materials Shock Rifle | 9% | -7/Factory Remote Datajack | 20% | -7/Factory Lgt. Nuclear Core | 40% | -7/Factory Xenon Bombardment Thruster | 46% | -7/Factory Xenon Bombardment Thruster | 86% | -7/Factory Trap Scanner | 50% | -7/Factory Shock Rifle | 78% | -7/Factory Lgt. Nuclear Core | 34% | -7/Factory Xenon Bombardment Thruster | 50% | -7/Factory Studied --------- Flight Unit | -9/Materials | Hacked Lgt. Ion Engine | -9/Materials | Hacked EM Pulse Gun | -9/Materials | Hacked Airjet | -8/Materials | Hacked EM Pulse Cannon | -8/Materials | Hacked Lgt. Nuclear Core | -8/Materials | Hacked Shock Rifle | -8/Materials | Hacked Cesium-ion Thruster | -8/Materials | Hacked Remote Datajack | -7/Factory | Hacked Xenon Bombardment Thruster | -7/Factory | Hacked Imp. Arc Projector | -7/Factory | Hacked VTOL Module | -7/Factory | Hacked Gravmag System | -7/Factory | Hacked Mic. Nuclear Core | -7/Factory | Hacked Alien Tech Used ----------------- None Achievements -------------- Fitting Room Hackathon Hackerman Jackpot My Business Is Booming Oppo Buddy Professional Mechanic Challenges ------------ None Game ------ Seed PointyExoskeletonExpander Manual? 0 Play Time 05:33:56 Cumulative 204.1 hours Start 2025.12.27 @ 04:23:26 End 2025.12.27 @ 11:26:33 Sessions 1 Manual Loads 0 Difficulty Adventurer Special Mode None Game No. 54 Rogue 2 Adventurer 52 Explorer 0 Win Type - Total 2 Types 2/0/0/0/0/0/0/0/0/0 Lore% 38 Gallery% 58 Achievement% 41 Wizard Run 0 Options --------- Layout 0 ASCII 0 Keyboard 1 Movement Numpad Keybinds 1 Fullscreen 1 Font 24/Terminus Map View 76x50 Zoom Use 0% Tactical HUD 1 Map Filters NONE Filters NONE Steam 1 RUN: 3ef93485-b963-4ce1-bc40-dc688b5e6f58